bitfinex-derivatives/quotes_ETHF0:USTF0_20251009
["timestamp","ask_amount","ask_price","bid_price","bid_amount"]
[1759999215179,0.41424,4344.4,4344.2,1.7839]
[1759999215371,3.01313551,4344.4,4344.1,0.0028082]
[1759999215576,1.8691,4344.3,4344.1,0.0028082]
[1759999215780,0.41426,4344.2,4344.1,0.0028082]
[1759999215974,3.35471947,4344.2,4344.1,0.0028082]
[1759999216172,3.35471947,4344.2,4343.3,0.232]
[1759999216173,1.8691,4344.1,4339.9,224.242]
[1759999216378,5.0,4344.2,4340.7,1.7839]
[1759999216379,0.41451,4341.6,4340.7,1.7839]
[1759999216579,0.41449,4341.8,4340.7,2.0159]
[1759999216778,0.7134,4342.5,4341.4,1.7839]
[1759999216779,3.01651534,4341.5,4341.4,1.7839]
[1759999217079,3.01651534,4341.5,4340.8,40.8]
[1759999217080,0.41453,4341.4,4340.8,1.7839]
[1759999217285,0.00226306,4341.4,4341.0,2.475]
[1759999217480,1.03588,4343.3,4341.0,2.475]
[1759999217481,1.8691,4342.7,4341.3,2.19843]
[1759999217681,1.8691,4342.7,4341.6,1.7839]
[1759999217880,2.97118182,4342.8,4341.6,1.7839]
[1759999218077,2.97118182,4342.9,4342.2,0.41444]
[1759999218277,2.97118182,4343.1,4342.3,1.7839]
[1759999218577,1.8691,4342.7,4341.7,2.0159]
[1759999218780,0.41444,4342.3,4341.7,0.232]
[1759999219079,0.41446,4342.2,4341.8,1.7839]
[1759999219382,3.03561054,4342.6,4341.6,40.8]
[1759999219383,3.03561054,4342.1,4341.6,40.8]
[1759999219573,0.41454,4341.3,4341.1,1.7839]
[1759999219780,0.41456,4341.1,4340.8,1.7858848]
[1759999220186,5.32758359,4341.0,4340.8,0.0019848]
[1759999220389,1.8691,4340.9,4340.8,0.0019848]
[1759999220578,6.8691,4340.9,4338.8,1.7839]
[1759999220779,1.8691,4340.8,4337.9,0.12605289]
[1759999220982,3.02201721,4340.9,4338.2,1.03707]
[1759999220983,0.41461,4340.6,4338.2,1.03707]
[1759999221280,1.8691,4340.6,4339.9,1.7839]
[1759999221478,3.02201721,4340.5,4339.9,1.7839]
[1759999221675,3.02201721,4340.5,4339.9,1.78607203]
[1759999221983,2.28365,4341.2,4340.5,2.1985]
[1759999222283,3.00096556,4341.1,4340.4,1.7839]
[1759999222482,3.00096556,4341.1,4340.6,0.41459]
[1759999222679,1.8691,4341.2,4340.6,2.19849]
[1759999222880,2.28365,4341.2,4340.6,2.19849]
[1759999223185,1.8691,4341.8,4341.0,0.41456]
[1759999223384,0.41446,4342.1,4341.5,0.41451]
[1759999223577,1.8691,4342.4,4341.2,0.41454]
[1759999223885,1.8691,4342.4,4341.0,2.475]
[1759999223886,2.92830885,4342.4,4341.1,1.7839]
[1759999224083,0.232,4342.3,4341.1,1.7839]
[1759999224285,1.8691,4341.9,4340.8,40.8]
[1759999224490,1.8691,4341.9,4340.9,1.7839]
[1759999224678,2.92830885,4341.8,4340.9,2.19847]
[1759999224880,2.92830885,4341.8,4340.3,1.7839]
[1759999225087,0.41464,4340.3,4339.9,0.00217203]
[1759999225387,0.41464,4340.3,4340.0,40.8]
[1759999225581,0.41464,4340.3,4340.1,1.7839]
[1759999225779,2.5825,4340.0,4338.5,2.475]
[1759999225977,1.8691,4339.8,4338.5,1.7839]
[1759999226175,0.41478,4338.8,4338.2,0.41482]
[1759999226379,1.8691,4339.6,4338.3,42.5839]
[1759999226576,0.41477,4338.9,4338.3,42.99871]
[1759999226776,3.45460658,4338.9,4338.3,42.99871]
[1759999227082,0.41745333,4338.9,4338.3,41.21700927]
[1759999227385,0.4148,4338.6,4338.4,1.7839]
[1759999227587,0.41481,4338.5,4338.4,1.7839]
[1759999228486,0.41481,4338.5,4337.9,0.02305289]
[1759999228487,0.41485,4338.0,4337.9,0.02305289]
[1759999228687,2.26935,4338.0,4337.9,0.02305289]
[1759999228884,1.8545,4338.0,4337.9,0.02305289]
[1759999229083,0.232,4338.7,4337.9,0.02305289]
[1759999229084,0.41482,4338.4,4337.9,0.02305289]
[1759999229385,2.95981757,4338.3,4338.2,0.41482]
[1759999229584,2.95981757,4338.3,4338.2,6.8796117]
[1759999229785,0.41478,4338.8,4338.2,7.2944317]
[1759999229985,0.41478,4338.8,4338.2,2.2944317]
[1759999230183,0.00268333,4338.9,4338.2,0.0024117]
[1759999230387,1.8545,4338.3,4338.2,0.0024117]
[1759999230786,1.8545,4338.3,4337.0,0.6911]
[1759999230787,0.41487,4337.8,4337.0,0.41494]
[1759999231091,2.93926954,4337.7,4336.9,1.8772]
[1759999231291,0.41492,4337.3,4336.9,1.8772]
[1759999231503,2.93926954,4337.9,4336.9,0.41495]
[1759999231691,0.41493,4337.2,4336.9,1.8772]
[1759999231887,2.8407,4338.0,4336.9,1.87957296]
[1759999232088,0.41492,4337.3,4336.9,1.87957296]
[1759999232391,0.41493,4337.2,4336.9,1.87957296]
[1759999232689,2.94424346,4337.2,4337.0,1.8772]
[1759999232891,2.99858449,4337.7,4337.0,0.41494]
[1759999233097,1.8545,4338.2,4337.1,1.8772]
[1759999233295,2.0875,4338.2,4337.3,0.41491]
[1759999233592,2.0875,4338.2,4337.1,1.8772]
[1759999233593,2.99858449,4338.1,4337.1,1.8772]
[1759999233787,2.99858449,4338.1,4337.0,0.7339]
[1759999233788,0.4149,4337.5,4337.3,1.8772]
[1759999234384,2.99858449,4338.1,4336.9,0.00237296]
[1759999234385,0.41494,4337.1,4336.9,0.00237296]
[1759999234790,1.8545,4337.5,4336.9,0.00237296]
[1759999234993,0.64791,4337.4,4336.9,0.00237296]
[1759999235190,0.41493,4337.2,4337.0,1.8772]
[1759999235393,2.93384912,4337.4,4337.1,0.41494]
[1759999235586,0.41491,4337.4,4337.2,1.8772]
[1759999235787,0.41492,4337.3,4337.0,0.41494]
[1759999235997,3.05834829,4337.4,4337.2,0.41163202]
[1759999236289,0.7532,4338.6,4337.6,1.8772]
[1759999236491,0.7532,4338.6,4337.2,0.233]
[1759999236492,1.8545,4338.5,4337.2,0.233]
[1759999236685,3.05834829,4338.3,4338.2,1.8772]
[1759999236886,1.8545,4339.8,4338.6,1.8772]
[1759999237093,1.8545,4339.8,4339.4,0.41471]
[1759999237296,1.8545,4339.9,4339.1,1.8772]
[1759999237492,0.41467,4339.9,4339.4,0.41471]
[1759999237790,1.8545,4339.8,4339.5,0.4147]
[1759999237995,1.8545,4339.8,4339.6,0.41469]
[1759999238193,2.26918,4339.8,4339.4,2.29191]
[1759999238396,0.00195216,4339.9,4339.2,1.26982]
[1759999238589,0.00195216,4339.9,4339.8,2.29188]
[1759999239190,1.8545,4339.8,4338.9,40.8]
[1759999239390,1.03686,4339.2,4338.3,1.8772]
[1759999239696,0.41481,4338.5,4338.3,1.8772]
[1759999239886,0.41486,4337.9,4337.5,2.29209]
[1759999240091,1.8545,4338.5,4337.0,0.7339]
[1759999240092,0.41488,4337.7,4337.2,0.41492]
[1759999240297,0.41484,4338.1,4337.4,0.4149]
[1759999240594,0.41487,4337.9,4337.6,1.8772]
[1759999240995,3.00709552,4338.0,4337.0,0.9669]
[1759999240996,2.99121712,4338.3,4337.0,0.9669]
[1759999241200,0.233,4338.4,4337.9,0.41485]
[1759999241393,0.41481,4338.4,4338.0,2.29204]
[1759999241694,2.99121712,4338.2,4337.8,1.8772]
[1759999241896,4.84571712,4338.3,4338.0,0.41484]
[1759999242101,0.41482,4338.3,4338.0,0.41484]
[1759999242399,3.01620595,4338.9,4336.9,0.00237296]
[1759999242400,1.8545,4337.9,4336.9,0.00237296]
[1759999242603,3.01620595,4338.2,4337.6,0.41489]
[1759999242604,0.41485,4338.0,4337.6,0.41489]
[1759999242901,0.41487,4337.8,4337.7,1.8772]
[1759999243098,2.9429663,4337.9,4337.1,1.8772]
[1759999243302,0.4149,4337.6,4337.0,2.1102]
[1759999243497,0.41487,4337.8,4337.1,2.29214]
[1759999243694,0.41487,4337.8,4337.4,0.4149]
[1759999243896,0.41488,4337.7,4337.5,1.8772]
[1759999244204,0.41491,4337.5,4337.2,1.9122]
[1759999244398,0.41491,4337.5,4336.9,0.00237296]
[1759999244399,2.29845,4337.0,4336.9,0.00237296]
[1759999244697,0.41495,4337.0,4336.9,0.00237296]
[1759999244900,0.41494,4337.1,4336.9,0.00237296]
[1759999245098,2.1165,4337.3,4336.9,0.41732296]
[1759999245395,3.03310428,4337.2,4336.9,0.00237296]
[1759999245602,0.41494,4337.1,4336.9,0.00237296]
[1759999245796,0.41494,4337.1,4336.0,1.7715]
[1759999245797,1.8835,4336.4,4335.0,100.0]
[1759999246000,10.37854,4335.0,4332.1,1.9122]
[1759999246302,3.00532436,4334.9,4333.1,1.9122]
[1759999246602,0.233,4334.8,4333.9,1.9122]
[1759999246794,0.41523,4334.1,4333.9,0.002919]
[1759999247094,0.00204091,4334.8,4332.7,1.9122]
[1759999247095,3.04651906,4334.7,4332.7,1.9122]
[1759999247295,0.00204091,4334.8,4333.7,0.41526]
[1759999247296,3.04651906,4334.0,4333.7,0.41526]
[1759999247601,0.233,4334.1,4333.3,1.9122]
[1759999247792,0.41517,4334.7,4333.7,0.41525]
[1759999247997,2.93182768,4334.0,4333.7,0.00202192]
[1759999248398,2.93182768,4334.7,4333.9,0.41524]
[1759999248600,0.233,4334.6,4334.1,1.9122]
[1759999248795,0.00204091,4334.8,4334.1,2.32741]
[1759999248999,2.9859762,4334.5,4334.4,3.02719]
[1759999249303,0.00204091,4334.8,4334.7,1.9122]
[1759999249505,2.9859762,4334.6,4333.9,1.9122]
[1759999249802,0.41518,4334.6,4333.9,1.9122]
[1759999250000,0.00204091,4334.8,4333.8,1.9122]
[1759999250302,0.00204091,4334.8,4333.7,0.70182192]
[1759999250303,0.41521,4334.3,4333.7,0.70182192]
[1759999250503,0.43622,4334.2,4333.8,1.9122]
[1759999250703,3.05956493,4334.2,4333.8,1.9122]
[1759999251001,3.03418365,4334.4,4334.2,1.9122]
[1759999251301,3.03418365,4334.7,4334.6,0.41517]
[1759999251497,3.03418365,4334.7,4334.6,1.9122]
[1759999251695,0.00204091,4334.8,4333.8,1.9122]
[1759999251895,3.0392685,4334.7,4333.8,1.9122]
[1759999252204,3.0392685,4334.7,4333.7,0.70182192]
[1759999252205,0.00204091,4334.8,4333.9,1.9122]
[1759999252400,0.4152,4334.4,4333.9,1.9122]
[1759999252597,0.016,4334.3,4333.8,1.0]
[1759999252797,0.016,4334.3,4333.8,0.48602901]
[1759999252798,0.41524,4333.9,4333.8,0.48602901]
[1759999253197,2.94747646,4333.9,4333.8,0.48602901]
[1759999253403,8.18047646,4333.9,4333.8,0.48602901]
[1759999253599,5.233,4333.9,4333.8,0.48602901]
[1759999253906,0.41533,4333.0,4332.9,0.0230795]
[1759999254105,0.233,4333.0,4332.9,0.0230795]
[1759999254300,3.28696031,4333.0,4332.9,0.0230795]
[1759999254704,3.28696031,4333.0,4332.9,0.02581557]
[1759999254901,3.05396031,4333.0,4332.9,0.02581557]
[1759999255200,4.03911284,4334.5,4332.9,0.02581557]
[1759999255505,0.233,4334.4,4332.9,0.02581557]
[1759999255702,0.41533,4333.0,4332.9,0.02581557]
[1759999255900,0.64833,4333.0,4332.9,0.02581557]
[1759999256100,2.97769562,4333.0,4332.9,0.02581557]
[1759999256403,5.233,4333.0,4331.0,1.91667374]
[1759999256604,0.41545,4331.8,4331.0,0.00447374]
[1759999256803,2.97769562,4332.9,4331.4,2.612]
[1759999257002,2.97769562,4332.9,4331.5,1.9122]
[1759999257199,0.233,4332.8,4331.5,1.9122]
[1759999257400,0.41539,4332.4,4331.8,2.32764]
[1759999257704,2.98264137,4332.7,4332.6,2.612]
[1759999257901,0.41526,4333.8,4332.6,2.612]
[1759999258107,2.95685562,4333.4,4333.3,2.6614]
[1759999258406,0.41532,4333.2,4332.6,0.6998]
[1759999258609,0.41534,4332.9,4332.1,2.2461]
[1759999258907,0.233,4333.1,4332.1,2.2461]
[1759999258908,2.98648537,4332.8,4332.1,2.2461]
[1759999259108,2.98648537,4332.8,4331.7,1.03862]
[1759999259304,2.98648537,4332.8,4331.5,0.23520431]
[1759999259305,2.98648537,4333.0,4332.9,2.2461]
[1759999259505,0.4152,4334.4,4333.5,0.41527]
[1759999259801,0.00204091,4334.8,4334.7,2.2461]
[1759999260111,0.00204091,4334.8,4334.7,2.24861748]
[1759999260309,3.65268593,4334.8,4334.7,0.00251748]
[1759999260504,0.41508,4335.7,4334.7,7.24861748]
[1759999260701,0.1949,4335.7,4334.7,0.00251748]
[1759999261007,2.98225671,4334.8,4334.7,2.24861748]
[1759999261202,0.41513,4335.1,4334.7,2.24861748]
[1759999261408,2.98225671,4334.8,4334.7,2.24861748]
[1759999261605,2.98225671,4334.8,4334.7,0.00251748]
[1759999261810,2.98225671,4335.0,4334.9,2.2461]
[1759999262012,0.1949,4337.2,4335.7,2.66117]
[1759999262205,35.996,4338.7,4336.0,1.03761]
[1759999262406,0.41481,4338.5,4336.9,0.41495]
[1759999262607,0.4289,4338.6,4336.9,0.41495]
[1759999262608,2.95993838,4337.1,4337.0,2.2461]
[1759999262801,0.41486,4337.9,4337.1,0.41494]
[1759999263002,0.0027839,4337.9,4337.0,2.2461]
[1759999263207,3.01267172,4337.7,4337.6,2.66098]
[1759999263505,0.1949,4340.0,4337.8,2.2461]
[1759999263710,0.2969,4340.0,4338.6,2.2461]
[1759999264012,0.2969,4340.0,4337.3,2.4801]
[1759999264013,2.93682096,4339.1,4337.3,2.4801]
[1759999264311,0.41482,4338.4,4337.4,40.8]
[1759999264515,0.4148,4338.5,4337.7,0.41487]
[1759999264706,2.93682096,4338.3,4337.4,40.80298832]
[1759999264903,0.4149,4337.6,4337.4,0.00298832]
[1759999265205,0.022,4337.9,4337.4,0.00298832]
[1759999265509,2.98577357,4337.8,4337.6,0.41489]
[1759999265716,2.98577357,4337.8,4337.4,0.00298832]
[1759999265910,0.4149,4337.5,4337.4,0.00298832]
[1759999266212,0.415,4336.5,4336.2,2.2461]
[1759999266607,0.415,4336.5,4334.9,1.03787]
[1759999266608,0.41502,4336.2,4336.0,2.2461]
[1759999266808,0.41502,4336.2,4334.4,0.8747]
[1759999266809,0.1949,4336.2,4334.5,2.2461]
[1759999267019,0.4151,4335.4,4334.6,0.41517]
[1759999267206,0.117,4335.8,4334.7,40.8]
[1759999267406,2.96373366,4335.3,4335.2,3.1208]
[1759999267714,0.00185273,4335.3,4335.2,3.3548]
[1759999267914,2.96373366,4336.1,4336.0,3.1208]
[1759999268114,0.234,4337.3,4336.1,2.2461]
[1759999268310,3.02370847,4337.2,4336.1,2.2461]
[1759999268513,0.234,4337.3,4336.1,2.2461]
[1759999268808,3.02370847,4337.2,4336.2,2.2461]
[1759999269013,3.44106065,4337.2,4336.6,0.41498]
[1759999269214,0.41495,4337.0,4336.9,2.2461]
[1759999269712,3.04053303,4337.0,4336.9,2.2461]
[1759999270211,3.04053303,4337.0,4336.0,0.8747]
[1759999270412,0.1968,4336.3,4334.8,2.2461]
[1759999270611,0.1968,4336.3,4334.2,1.03804]
[1759999270612,0.41503,4336.2,4335.2,3.1208]
[1759999270813,0.41504,4336.1,4335.3,2.2461]
[1759999271014,2.96448636,4336.2,4336.0,0.41504]
[1759999271214,0.41496,4336.9,4336.1,2.2461]
[1759999271515,0.41497,4336.8,4336.4,0.415]
[1759999271712,0.41497,4336.8,4336.5,0.234]
[1759999271916,2.9770718,4336.7,4336.6,2.2461]
[1759999272418,0.41494,4337.1,4336.8,0.41496]
[1759999272605,0.4149,4337.5,4336.9,2.2461]
[1759999272809,0.4149,4337.5,4336.0,0.8747]
[1759999272810,1.03737,4337.0,4336.0,0.8747]
[1759999273005,0.41507,4335.8,4334.6,0.00298365]
[1759999273214,2.94146751,4336.9,4335.7,2.2461]
[1759999273510,0.41505,4336.0,4335.9,2.2461]
[1759999273710,2.94146751,4336.5,4335.9,2.2461]
[1759999273711,2.94146751,4336.5,4335.9,7.89515]
[1759999273906,0.41498,4336.7,4336.3,0.41501]
[1759999274116,0.41498,4336.7,4336.6,2.2461]
[1759999274313,0.00242218,4337.2,4336.8,0.41496]
[1759999274314,3.3499916,4337.1,4336.8,0.41496]
[1759999274615,0.41735218,4337.2,4337.0,2.2461]
[1759999274816,0.41735218,4337.2,4337.1,43.2801]
[1759999274817,0.00242218,4337.2,4337.1,43.2801]
[1759999275820,0.43686,4337.9,4337.1,43.2801]
[1759999275821,0.022,4337.9,4337.8,2.2461]
[1759999276015,0.022,4337.9,4337.8,2.4801]
[1759999276208,0.022,4337.9,4337.8,7.4801]
[1759999276916,1.03666,4340.0,4338.9,0.41476]
[1759999277123,1.03666,4340.0,4338.6,0.8747]
[1759999277124,0.00163439,4340.0,4339.1,2.2461]
[1759999277417,0.00163439,4340.0,4338.6,0.8747]
[1759999277418,0.41473,4339.3,4338.6,0.8747]
[1759999277717,3.05417945,4339.2,4338.8,2.2461]
[1759999278115,3.04672382,4339.7,4338.8,2.2461]
[1759999278414,0.1843,4339.9,4338.8,2.2461]
[1759999278619,3.04672382,4339.6,4338.8,2.2461]
[1759999278821,3.46141382,4339.7,4339.4,0.41471]
[1759999279028,0.41469,4339.7,4339.5,2.2461]
[1759999279319,3.04722805,4339.6,4339.5,2.2461]
[1759999280117,3.04722805,4339.6,4339.0,0.41475]
[1759999280313,3.04722805,4339.6,4339.1,0.234]
[1759999280518,3.04722805,4339.6,4339.4,2.2461]
[1759999280719,3.04722805,4339.6,4339.3,1.1087]
[1759999281024,0.42030888,4339.7,4339.5,0.4147]
[1759999281221,0.42030888,4339.7,4339.6,2.2461]
[1759999281815,0.41472,4339.4,4339.3,0.8747]
[1759999282015,0.41475,4339.1,4338.8,40.8]
[1759999282321,0.41475,4339.1,4339.0,2.4801]
[1759999282632,0.41475,4339.1,4338.3,2.2461]
[1759999282633,1.03692,4338.9,4338.3,2.2461]
[1759999282832,0.41483,4338.2,4338.0,2.2461]
[1759999283027,0.41483,4338.2,4338.0,2.4801]
[1759999283231,0.41485,4338.0,4337.8,0.00227784]
[1759999283426,0.2188,4337.9,4337.8,0.00227784]
[1759999283626,2.97376025,4337.9,4337.8,2.24837784]
[1759999284126,2.97376025,4337.9,4337.8,0.00227784]
[1759999285231,2.97376025,4337.9,4337.8,2.24837784]
[1759999285434,0.41485,4338.0,4337.9,3.1208]
[1759999285631,0.41484,4338.1,4338.0,2.2461]
[1759999285830,0.41765882,4338.2,4337.8,0.00227784]
[1759999285831,3.34777434,4337.9,4337.8,0.00227784]
[1759999286139,0.41486,4337.9,4337.8,0.00227784]
[1759999286338,3.40583315,4337.9,4337.8,0.00227784]
[1759999286536,3.62463315,4337.9,4337.8,0.00227784]
[1759999286839,3.40583315,4337.9,4337.8,2.24837784]
[1759999287140,0.41765882,4338.2,4338.0,0.41485]
[1759999287332,0.41765882,4338.2,4338.1,2.4801]
[1759999288334,0.41765882,4338.2,4338.1,7.4801]
[1759999288540,1.0367,4339.8,4338.2,2.0933]
[1759999288836,2.96077491,4339.1,4338.7,2.0933]
[1759999289034,2.96077491,4339.1,4338.9,2.0933]
[1759999289231,11.54999053,4341.2,4338.9,2.0933]
[1759999289437,1.0367,4339.9,4339.0,2.0933]
[1759999289633,0.41475,4339.1,4339.0,2.0933]
[1759999290634,0.1713,4340.2,4339.0,2.0933]
[1759999290939,0.1713,4340.2,4338.8,0.234]
[1759999290940,0.41473,4339.3,4339.2,2.9849]
[1759999291138,0.41473,4339.3,4339.2,3.2189]
[1759999291536,0.41469,4339.8,4339.4,2.0933]
[1759999291739,1.03668,4339.9,4339.3,2.0933]
[1759999291933,0.41472,4339.4,4339.3,2.0933]
[1759999292528,0.41472,4339.4,4338.7,2.0933]
[1759999292529,0.41478,4338.8,4338.7,2.0933]
[1759999292736,0.41478,4338.8,4338.7,2.3273]
[1759999292936,0.41476,4339.0,4338.7,2.74207]
[1759999293138,0.41477,4338.9,4338.8,2.0933]
[1759999294239,0.41477,4338.9,4338.8,2.3273]
[1759999294838,3.04039237,4339.4,4338.8,2.74207]
[1759999295034,0.00163439,4340.0,4339.2,1.30633]
[1759999295240,0.41469,4339.7,4339.6,2.0933]
[1759999295439,0.41469,4339.7,4339.6,2.3273]
[1759999295743,0.00163439,4340.0,4339.9,2.0933]
[1759999296042,0.00163439,4340.0,4339.9,2.3273]
[1759999296438,0.00163439,4340.0,4339.9,2.0933]
[1759999296639,0.00163439,4340.0,4339.9,2.3273]
[1759999298139,0.00163439,4340.0,4339.9,7.3273]
[1759999299643,0.00163439,4340.0,4339.9,48.1273]
[1759999299838,0.41455,4341.2,4340.8,0.41457]
[1759999300043,0.41454,4341.3,4341.0,0.8916]
[1759999300239,3.39166829,4341.3,4341.2,2.0933]
[1759999300439,1.03622,4341.9,4341.1,0.64855]
[1759999300440,0.41453,4341.4,4341.1,0.64855]
[1759999300748,0.41453,4341.4,4340.6,1.03649]
[1759999300749,0.41459,4340.7,4340.6,2.0933]
[1759999301043,0.41459,4340.7,4340.6,2.09608089]
[1759999301246,0.41459,4340.7,4340.6,2.33008089]
[1759999301545,0.00230059,4341.4,4341.2,0.41454]
[1759999301846,0.00230059,4341.4,4341.3,2.3273]
[1759999302445,11.54410053,4343.7,4341.4,1.03631]
[1759999302446,0.022,4342.9,4341.4,1.03631]
[1759999302649,0.022,4342.9,4342.0,0.8916]
[1759999302846,0.41444,4342.3,4342.1,0.234]
[1759999303043,0.41446,4342.2,4342.1,2.0933]
[1759999303239,0.41444,4342.3,4342.1,2.3273]
[1759999303443,0.41727755,4342.3,4342.2,2.0933]
[1759999304847,0.00283755,4342.3,4342.2,7.0933]
[1759999305650,0.00283755,4342.3,4342.2,47.8933]
[1759999306952,0.41438,4342.9,4342.6,2.1143]
[1759999307251,0.41438,4342.9,4342.8,2.1143]
[1759999307552,0.41437,4343.0,4342.9,2.1143]
[1759999307846,3.00658326,4343.7,4343.4,0.41433]
[1759999308045,3.00929249,4343.7,4343.6,2.1143]
[1759999308245,0.00270923,4343.7,4343.6,2.1143]
[1759999308764,0.4143,4343.8,4343.5,0.8699]
[1759999309051,0.41428,4344.0,4343.7,2.1143]
[1759999309250,0.41428,4344.0,4343.9,2.1143]
[1759999309652,0.41656399,4344.0,4343.9,2.11635777]
[1759999310151,8.89726581,4344.0,4343.9,0.00205777]
[1759999310342,1.03589,4343.2,4342.0,0.8916]
[1759999310645,2.92570182,4343.1,4342.5,0.8699]
[1759999310849,2.92570182,4343.1,4342.6,2.1143]
[1759999311050,0.41438,4342.9,4342.8,2.1143]
[1759999311260,0.41438,4342.9,4342.8,2.11703921]
[1759999312247,0.00228399,4344.0,4343.2,0.41435]
[1759999312446,0.00228399,4344.0,4343.3,2.1143]
[1759999312447,0.41434,4343.4,4343.3,2.1143]
[1759999312647,3.35066443,4343.6,4343.1,0.64736]
[1759999312950,0.00228399,4344.0,4343.5,0.8699]
[1759999313153,0.41431,4343.7,4343.6,2.1143]
[1759999314648,3.46463406,4343.9,4343.5,0.8699]
[1759999314856,3.05034406,4343.9,4343.7,0.4143]
[1759999315047,3.05034406,4343.9,4343.8,2.1143]
[1759999315451,0.41656399,4344.0,4343.8,2.1143]
[1759999315452,0.00228399,4344.0,4343.9,0.41429]
[1759999315648,0.00228399,4344.0,4343.9,2.52859]
[1759999316148,0.00228399,4344.0,4343.7,0.233]
[1759999316347,1.03577,4343.7,4343.3,2.1143]
[1759999316550,1.59077,4343.7,4343.3,2.1143]
[1759999316755,0.41433,4343.5,4343.3,2.1143]
[1759999316957,0.41434,4343.4,4343.3,2.1143]
[1759999317152,3.43123683,4343.4,4343.3,2.1143]
[1759999317460,0.41433,4343.5,4343.4,2.1143]
[1759999317951,3.01689683,4343.8,4343.6,0.41431]
[1759999318153,3.01689683,4343.8,4343.7,2.1143]
[1759999318358,0.41429,4343.9,4343.7,0.4143]
[1759999318559,0.41429,4343.9,4343.8,2.1376]
[1759999318856,3.39737674,4343.9,4343.8,2.1376]
[1759999319654,0.00228399,4344.0,4343.8,2.1376]
[1759999319958,3.06123702,4343.9,4343.8,2.1376]
[1759999320552,0.00228399,4344.0,4343.9,2.55189]
[1759999320757,0.00228399,4344.0,4343.9,2.78489]
[1759999320958,0.00228399,4344.0,4343.9,43.58489]
[1759999322654,2.07011,4346.8,4344.5,0.8204]
[1759999322855,0.41422,4344.7,4344.5,2.958]
[1759999323062,3.43037836,4344.7,4344.5,2.958]
[1759999323261,0.41422,4344.7,4344.5,2.958]
[1759999323553,0.233,4345.3,4344.6,2.1376]
[1759999323755,0.41418,4345.0,4344.9,2.1376]
[1759999324061,3.39596312,4345.0,4344.9,2.1376]
[1759999324462,0.41427,4344.1,4343.8,2.1376]
[1759999324764,0.41431,4343.6,4343.5,3.0075]
[1759999325760,0.41436,4343.1,4343.0,3.0075]
[1759999326462,0.41436,4343.1,4342.8,0.00273921]
[1759999326463,0.41438,4342.9,4342.8,0.00273921]
[1759999326761,3.38456487,4342.9,4342.8,0.00273921]
[1759999327155,2.97018487,4342.9,4342.8,2.14033921]
[1759999327361,1.03567,4344.2,4342.8,2.14033921]
[1759999327362,0.5199,4344.0,4343.0,0.8204]
[1759999327561,0.41432,4343.6,4343.5,0.8204]
[1759999327764,3.40500052,4343.6,4343.5,2.958]
[1759999328059,0.41432,4343.6,4343.5,2.958]
[1759999328257,3.38709701,4343.6,4343.5,2.958]
[1759999328464,3.38709701,4343.6,4343.5,2.1376]
[1759999328659,0.41436,4343.1,4343.0,2.958]
[1759999329160,0.41433,4343.5,4343.3,2.1376]
[1759999329461,0.41431,4343.6,4343.5,2.958]
[1759999329664,1.03565,4344.3,4343.5,2.958]
[1759999329858,0.41431,4343.7,4343.6,2.1376]
[1759999330059,3.40161949,4343.7,4343.6,2.1376]
[1759999330266,0.41431,4343.7,4343.6,2.1376]
[1759999330453,3.35421794,4343.7,4343.6,2.1376]
[1759999330664,2.93990794,4343.7,4343.6,2.1376]
[1759999330862,0.41428,4344.0,4343.6,2.1376]
[1759999331062,1.03559,4344.5,4343.8,2.55189]
[1759999331362,0.41426,4344.2,4344.1,2.1376]
[1759999331557,0.96261282,4344.2,4344.1,2.1376]
[1759999331757,0.41426,4344.2,4344.1,2.1376]
[1759999332560,0.41425,4344.3,4344.1,2.1376]
[1759999333058,3.34784502,4344.7,4344.6,2.1376]
[1759999333263,0.41421,4344.7,4344.6,2.1376]
[1759999334060,0.00203062,4345.3,4344.6,2.1376]
[1759999334361,0.41421,4344.7,4344.6,2.1376]
[1759999335757,0.41427,4344.1,4344.0,0.8204]
[1759999335963,0.41431,4343.6,4343.5,3.191]
[1759999336367,0.4143,4343.8,4343.6,0.41431]
[1759999336663,0.4143,4343.8,4343.7,2.3706]
[1759999336859,0.5199,4345.1,4343.7,0.233]
[1759999337062,0.41422,4344.7,4344.6,2.1376]
[1759999337268,3.00998631,4344.9,4344.5,0.8204]
[1759999337569,3.00998631,4345.0,4344.5,0.8204]
[1759999337765,1.03549,4344.9,4344.3,0.233]
[1759999337961,1.03554,4344.7,4344.3,2.3706]
[1759999338162,0.41427,4344.1,4344.0,2.958]
[1759999338855,2.93876464,4344.6,4344.0,1.23467]
[1759999339060,2.93876464,4344.6,4344.5,0.8204]
[1759999339265,0.41422,4344.6,4344.5,2.958]
[1759999339466,0.41421,4344.7,4344.5,1.23462]
[1759999339666,0.233,4345.2,4344.6,2.1376]
[1759999339861,0.41419,4344.9,4344.7,0.41421]
[1759999340067,0.41419,4344.9,4344.8,2.1376]
[1759999340862,0.41422,4344.6,4344.5,2.958]
[1759999341063,4.05102023,4344.9,4343.9,2.1376]
[1759999341064,0.41427,4344.1,4343.9,2.1376]
[1759999341267,0.41428,4344.0,4343.8,0.233]
[1759999341470,0.41428,4344.0,4343.9,2.1376]
[1759999342670,0.233,4344.7,4344.1,2.1376]
[1759999342874,0.41426,4344.2,4344.1,2.1376]
[1759999343571,0.41431,4343.6,4343.5,0.8204]
[1759999343764,0.41436,4343.1,4343.0,2.958]
[1759999344067,0.233,4343.5,4342.8,0.00273921]
[1759999344272,0.93428,4342.9,4342.8,0.00273921]
[1759999344565,3.90274233,4342.9,4342.8,0.00273921]
[1759999344769,3.38284233,4342.9,4342.8,0.00273921]
[1759999346166,3.61584233,4342.9,4342.8,0.00273921]
[1759999347367,0.41451,4341.6,4341.5,3.191]
[1759999347863,0.41451,4341.6,4340.5,0.8204]